[Event "Titled Tuesday Blitz February 15 Late 2022"]
[White "Khater, Sherif"]
[Black "Martinez Ramirez, Lennis"]
[WhiteFideId "2034280"]
[BlackFideId "3509079"]
[WhiteElo "2549"]
[BlackElo "2374"]
[Result "1-0"]
[Round "05"]
[TimeControl "180+1"]
[Date "2022.02.16"]
[WhiteClock "0:01:28"]
[BlackClock "0:00:35"]

1. b3 {[%clk 0:03:00]}  Nf6 {[%clk 0:02:59]} 2. Bb2 {[%clk 0:03:01]}  d5 {[%clk 0:02:57]} 3. e3 {[%clk 0:03:01]}  Bf5 {[%clk 0:02:57]} 4. Ne2 {[%clk 0:03:01]}  h6 {[%clk 0:02:56]} 5. Ng3 {[%clk 0:03:01]}  Bh7 {[%clk 0:02:56]} 6. f4 {[%clk 0:02:59]}  e6 {[%clk 0:02:54]} 7. Be2 {[%clk 0:02:59]}  c5 {[%clk 0:02:52]} 8. O-O {[%clk 0:02:59]}  Nc6 {[%clk 0:02:52]} 9. f5 {[%clk 0:03:00]}  e5 {[%clk 0:02:51]} 10. Bb5 {[%clk 0:03:00]}  Bd6 {[%clk 0:02:50]} 11. c4 {[%clk 0:02:57]}  d4 {[%clk 0:02:49]} 12. e4 {[%clk 0:02:58]}  d3 {[%clk 0:02:40]} 13. Nc3 {[%clk 0:02:56]}  O-O {[%clk 0:02:39]} 14. Bxc6 {[%clk 0:02:55]}  bxc6 {[%clk 0:02:38]} 15. Nh5 {[%clk 0:02:56]}  Bc7 {[%clk 0:02:32]} 16. Nxf6+ {[%clk 0:02:53]}  Qxf6 {[%clk 0:02:33]} 17. Rf3 {[%clk 0:02:53]}  Rad8 {[%clk 0:02:32]} 18. Qf1 {[%clk 0:02:47]}  Qg5 {[%clk 0:02:31]} 19. Qf2 {[%clk 0:02:37]}  g6 {[%clk 0:02:31]} 20. Rf1 {[%clk 0:02:32]}  Kh8 {[%clk 0:02:30]} 21. Rg3 {[%clk 0:02:31]}  Qe7 {[%clk 0:02:26]} 22. f6 {[%clk 0:02:30]}  Qd6 {[%clk 0:02:24]} 23. Kh1 {[%clk 0:02:23]}  Rfe8 {[%clk 0:02:12]} 24. Qe3 {[%clk 0:02:17]}  Qf8 {[%clk 0:02:03]} 25. Rh3 {[%clk 0:02:14]}  h5 {[%clk 0:02:03]} 26. g4 {[%clk 0:02:12]}  hxg4 {[%clk 0:01:42]} 27. Rh4 {[%clk 0:02:11]}  Rd6 {[%clk 0:01:42]} 28. Qg5 {[%clk 0:01:54]}  Bd8 {[%clk 0:01:39]} 29. Nd1 {[%clk 0:01:47]}  Rd4 {[%clk 0:01:26]} 30. Nf2 {[%clk 0:01:44]}  Re6 {[%clk 0:01:04]} 31. Nxg4 {[%clk 0:01:43]}  Rxe4 {[%clk 0:01:04]} 32. Nxe5 {[%clk 0:01:34]}  Re2 {[%clk 0:00:40]} 33. Nxg6+ {[%clk 0:01:27]}  fxg6 {[%clk 0:00:35]} 34. f7+ {[%clk 0:01:28]} 1-0


[Site "https://www.chess.com"]

[Event "Titled Tuesday Blitz February 15 Late 2022"]
[White "Kim, Sergey"]
[Black "Kamsky, Gata"]
[WhiteFideId "13700570"]
[BlackFideId "2000024"]
[WhiteElo "2612"]
[BlackElo "2645"]
[Result "0-1"]
[Round "05"]
[TimeControl "180+1"]
[Date "2022.02.15"]
[WhiteClock "0:01:38"]
[BlackClock "0:01:57"]

1. d4 {[%clk 0:03:00]}  d5 {[%clk 0:02:54]} 2. c4 {[%clk 0:03:00]}  c6 {[%clk 0:02:54]} 3. Nf3 {[%clk 0:03:00]}  Nf6 {[%clk 0:02:54]} 4. Qc2 {[%clk 0:02:59]}  g6 {[%clk 0:02:53]} 5. e3 {[%clk 0:02:59]}  Bf5 {[%clk 0:02:51]} 6. Bd3 {[%clk 0:02:59]}  Bxd3 {[%clk 0:02:50]} 7. Qxd3 {[%clk 0:02:59]}  Bg7 {[%clk 0:02:51]} 8. O-O {[%clk 0:02:59]}  O-O {[%clk 0:02:51]} 9. Nc3 {[%clk 0:02:59]}  e6 {[%clk 0:02:50]} 10. e4 {[%clk 0:02:54]}  dxe4 {[%clk 0:02:50]} 11. Nxe4 {[%clk 0:02:54]}  Nxe4 {[%clk 0:02:50]} 12. Qxe4 {[%clk 0:02:55]}  Nd7 {[%clk 0:02:50]} 13. Bd2 {[%clk 0:02:52]}  a5 {[%clk 0:02:49]} 14. Bc3 {[%clk 0:02:50]}  a4 {[%clk 0:02:49]} 15. h4 {[%clk 0:02:48]}  Re8 {[%clk 0:02:44]} 16. Rad1 {[%clk 0:02:45]}  Qc7 {[%clk 0:02:42]} 17. Rfe1 {[%clk 0:02:39]}  b5 {[%clk 0:02:40]} 18. Ne5 {[%clk 0:02:31]}  bxc4 {[%clk 0:02:35]} 19. Nxc4 {[%clk 0:02:22]}  Nf6 {[%clk 0:02:33]} 20. Qe5 {[%clk 0:02:12]}  Qa7 {[%clk 0:02:18]} 21. Qc5 {[%clk 0:02:08]}  Nd5 {[%clk 0:02:16]} 22. Nd6 {[%clk 0:01:55]}  Reb8 {[%clk 0:02:06]} 23. Qxc6 {[%clk 0:01:44]}  Rb6 {[%clk 0:02:05]} 24. Qc5 {[%clk 0:01:39]}  Bf8 {[%clk 0:02:05]} 25. Nc8 {[%clk 0:01:38]}  Bxc5 {[%clk 0:01:57]} 26. Nxa7 {[%clk 0:01:38]}  Bd6 {[%clk 0:01:57]} 0-1


[Site "https://www.chess.com"]

[Event "Titled Tuesday Blitz February 15 Late 2022"]
[White "Kraus, Tomas"]
[Black "Ardila, Oscar Humberto"]
[WhiteFideId "331708"]
[BlackFideId "4404742"]
[WhiteElo "2389"]
[BlackElo "1898"]
[Result "1-0"]
[Round "05"]
[TimeControl "180+1"]
[Date "2022.02.16"]
[WhiteClock "0:00:09"]
[BlackClock "0:00:15"]

1. e4 {[%clk 0:03:00]}  e5 {[%clk 0:02:58]} 2. d4 {[%clk 0:03:01]}  exd4 {[%clk 0:02:57]} 3. c3 {[%clk 0:02:58]}  Nc6 {[%clk 0:02:56]} 4. cxd4 {[%clk 0:02:56]}  d6 {[%clk 0:02:55]} 5. Nc3 {[%clk 0:02:54]}  Nf6 {[%clk 0:02:54]} 6. Nf3 {[%clk 0:02:52]}  Be7 {[%clk 0:02:54]} 7. Be2 {[%clk 0:02:52]}  O-O {[%clk 0:02:54]} 8. O-O {[%clk 0:02:53]}  Bd7 {[%clk 0:02:50]} 9. h3 {[%clk 0:02:47]}  Re8 {[%clk 0:02:50]} 10. Be3 {[%clk 0:02:46]}  Bf8 {[%clk 0:02:49]} 11. a4 {[%clk 0:02:44]}  Nxe4 {[%clk 0:02:48]} 12. Nxe4 {[%clk 0:02:34]}  Rxe4 {[%clk 0:02:47]} 13. Bd3 {[%clk 0:02:34]}  Re8 {[%clk 0:02:47]} 14. Qc2 {[%clk 0:02:34]}  g6 {[%clk 0:02:44]} 15. Bg5 {[%clk 0:02:33]}  Be7 {[%clk 0:02:43]} 16. Bh6 {[%clk 0:02:31]}  Bf6 {[%clk 0:02:43]} 17. d5 {[%clk 0:02:27]}  Nb4 {[%clk 0:02:41]} 18. Qd2 {[%clk 0:02:22]}  Nxd3 {[%clk 0:02:40]} 19. Qxd3 {[%clk 0:02:23]}  Bf5 {[%clk 0:02:40]} 20. Qb5 {[%clk 0:02:20]}  b6 {[%clk 0:02:35]} 21. a5 {[%clk 0:02:16]}  Qd7 {[%clk 0:02:34]} 22. Qb3 {[%clk 0:02:08]}  bxa5 {[%clk 0:02:28]} 23. Rxa5 {[%clk 0:01:39]}  Rab8 {[%clk 0:02:23]} 24. Qc4 {[%clk 0:01:31]}  Re4 {[%clk 0:02:20]} 25. Qc6 {[%clk 0:01:13]}  Qxc6 {[%clk 0:01:33]} 26. dxc6 {[%clk 0:01:14]}  Ra8 {[%clk 0:01:07]} 27. Rfa1 {[%clk 0:01:12]}  Bxb2 {[%clk 0:01:02]} 28. Rxa7 {[%clk 0:01:12]}  Rxa7 {[%clk 0:01:00]} 29. Rxa7 {[%clk 0:01:13]}  Re8 {[%clk 0:00:52]} 30. Rxc7 {[%clk 0:01:12]}  Bg7 {[%clk 0:00:45]} 31. Bxg7 {[%clk 0:01:06]}  Kxg7 {[%clk 0:00:46]} 32. Nd4 {[%clk 0:01:05]}  Bc8 {[%clk 0:00:42]} 33. Nb5 {[%clk 0:01:04]}  Rd8 {[%clk 0:00:39]} 34. Nxd6 {[%clk 0:00:52]}  Rxd6 {[%clk 0:00:33]} 35. Rxc8 {[%clk 0:00:53]}  Rd1+ {[%clk 0:00:34]} 36. Kh2 {[%clk 0:00:52]}  Rc1 {[%clk 0:00:31]} 37. f3 {[%clk 0:00:47]}  Kf6 {[%clk 0:00:31]} 38. Kg3 {[%clk 0:00:41]}  h5 {[%clk 0:00:30]} 39. Rc7 {[%clk 0:00:31]}  Ke6 {[%clk 0:00:29]} 40. Kf4 {[%clk 0:00:30]}  f6 {[%clk 0:00:28]} 41. Rc8 {[%clk 0:00:24]}  Kd6 {[%clk 0:00:26]} 42. Rg8 {[%clk 0:00:20]}  Rc4+ {[%clk 0:00:26]} 43. Ke3 {[%clk 0:00:19]}  g5 {[%clk 0:00:25]} 44. Rc8 {[%clk 0:00:13]}  Rxc6 {[%clk 0:00:24]} 45. Rxc6+ {[%clk 0:00:13]}  Kxc6 {[%clk 0:00:25]} 46. Ke4 {[%clk 0:00:13]}  Kd6 {[%clk 0:00:25]} 47. Kf5 {[%clk 0:00:14]}  Ke7 {[%clk 0:00:26]} 48. h4 {[%clk 0:00:13]}  gxh4 {[%clk 0:00:22]} 49. Kg6 {[%clk 0:00:13]}  Ke6 {[%clk 0:00:22]} 50. Kxh5 {[%clk 0:00:13]}  h3 {[%clk 0:00:23]} 51. gxh3 {[%clk 0:00:11]}  Kf5 {[%clk 0:00:23]} 52. h4 {[%clk 0:00:09]}  Kf4 {[%clk 0:00:21]} 53. Kg6 {[%clk 0:00:10]}  f5 {[%clk 0:00:21]} 54. h5 {[%clk 0:00:09]}  Kxf3 {[%clk 0:00:15]} 55. Kxf5 {[%clk 0:00:09]} 1-0


[Site "https://www.chess.com"]

[Event "Titled Tuesday Blitz February 15 Late 2022"]
[White "Kravtsiv, Martyn"]
[Black "Nepomniachtchi, Ian"]
[WhiteFideId "14113147"]
[BlackFideId "4168119"]
[WhiteElo "2694"]
[BlackElo "2740"]
[Result "0-1"]
[Round "05"]
[TimeControl "180+1"]
[Date "2022.02.15"]
[WhiteClock "0:00:02"]
[BlackClock "0:00:31"]

1. e4 {[%clk 0:02:51]}  e6 {[%clk 0:02:57]} 2. d4 {[%clk 0:02:50]}  d5 {[%clk 0:02:57]} 3. Nc3 {[%clk 0:02:50]}  Bb4 {[%clk 0:02:57]} 4. e5 {[%clk 0:02:50]}  Ne7 {[%clk 0:02:58]} 5. Bd2 {[%clk 0:02:48]}  c5 {[%clk 0:02:58]} 6. Nb5 {[%clk 0:02:47]}  Bxd2+ {[%clk 0:02:57]} 7. Qxd2 {[%clk 0:02:48]}  O-O {[%clk 0:02:57]} 8. f4 {[%clk 0:02:46]}  b6 {[%clk 0:02:53]} 9. Nf3 {[%clk 0:02:45]}  Nbc6 {[%clk 0:02:53]} 10. c3 {[%clk 0:02:40]}  Ba6 {[%clk 0:02:50]} 11. Nd6 {[%clk 0:02:36]}  Bxf1 {[%clk 0:02:48]} 12. Rxf1 {[%clk 0:02:37]}  b5 {[%clk 0:02:44]} 13. dxc5 {[%clk 0:02:29]}  Qb8 {[%clk 0:02:44]} 14. Kf2 {[%clk 0:02:15]}  a5 {[%clk 0:02:44]} 15. Kg1 {[%clk 0:02:08]}  b4 {[%clk 0:02:43]} 16. Rac1 {[%clk 0:02:02]}  Qa7 {[%clk 0:02:42]} 17. Qf2 {[%clk 0:02:01]}  bxc3 {[%clk 0:02:38]} 18. Rxc3 {[%clk 0:02:00]}  Rab8 {[%clk 0:02:38]} 19. g3 {[%clk 0:01:39]}  h6 {[%clk 0:02:36]} 20. Rfc1 {[%clk 0:01:34]}  a4 {[%clk 0:02:35]} 21. Ne1 {[%clk 0:01:30]}  d4 {[%clk 0:02:32]} 22. Rc4 {[%clk 0:01:29]}  Nd5 {[%clk 0:02:32]} 23. Nd3 {[%clk 0:01:19]}  Ne3 {[%clk 0:02:32]} 24. Rxd4 {[%clk 0:01:19]}  Nxd4 {[%clk 0:02:33]} 25. Qxe3 {[%clk 0:01:19]}  Nf5 {[%clk 0:02:27]} 26. Qe4 {[%clk 0:01:15]}  Ne7 {[%clk 0:02:21]} 27. h4 {[%clk 0:01:09]}  Qa5 {[%clk 0:02:12]} 28. Rc2 {[%clk 0:01:05]}  Nd5 {[%clk 0:02:04]} 29. Kh2 {[%clk 0:00:52]}  Nb4 {[%clk 0:02:03]} 30. Nxb4 {[%clk 0:00:52]}  Rxb4 {[%clk 0:02:03]} 31. Qg2 {[%clk 0:00:45]}  Rfb8 {[%clk 0:01:58]} 32. h5 {[%clk 0:00:42]}  Rd4 {[%clk 0:01:56]} 33. c6 {[%clk 0:00:38]}  Qc7 {[%clk 0:01:56]} 34. Qe2 {[%clk 0:00:37]}  Rdb4 {[%clk 0:01:53]} 35. a3 {[%clk 0:00:34]}  R4b6 {[%clk 0:01:51]} 36. Qg2 {[%clk 0:00:31]}  Ra6 {[%clk 0:01:48]} 37. Kh3 {[%clk 0:00:29]}  Rab6 {[%clk 0:01:43]} 38. Kh2 {[%clk 0:00:25]}  Rb3 {[%clk 0:01:42]} 39. Kh3 {[%clk 0:00:23]}  Rd3 {[%clk 0:01:42]} 40. Qe2 {[%clk 0:00:23]}  Rbb3 {[%clk 0:01:40]} 41. Qf2 {[%clk 0:00:20]}  Rb8 {[%clk 0:01:23]} 42. Kh2 {[%clk 0:00:18]}  Rdb3 {[%clk 0:01:22]} 43. Kh3 {[%clk 0:00:18]}  f6 {[%clk 0:01:18]} 44. Qd4 {[%clk 0:00:17]}  fxe5 {[%clk 0:01:11]} 45. Qxe5 {[%clk 0:00:16]}  Kh8 {[%clk 0:01:06]} 46. Qxe6 {[%clk 0:00:16]}  Rf8 {[%clk 0:01:04]} 47. Qe5 {[%clk 0:00:11]}  Rb6 {[%clk 0:01:01]} 48. Ne4 {[%clk 0:00:10]}  Qc8+ {[%clk 0:01:00]} 49. Kh2 {[%clk 0:00:08]}  Rxc6 {[%clk 0:01:01]} 50. Rxc6 {[%clk 0:00:08]}  Qxc6 {[%clk 0:01:02]} 51. Nc3 {[%clk 0:00:07]}  Rd8 {[%clk 0:00:58]} 52. Kh3 {[%clk 0:00:06]}  Qc8+ {[%clk 0:00:57]} 53. Kh4 {[%clk 0:00:06]}  Rd2 {[%clk 0:00:57]} 54. Ne2 {[%clk 0:00:05]}  Qd7 {[%clk 0:00:53]} 55. g4 {[%clk 0:00:05]}  Qd8+ {[%clk 0:00:53]} 56. Kg3 {[%clk 0:00:05]}  Rd7 {[%clk 0:00:49]} 57. f5 {[%clk 0:00:04]}  Re7 {[%clk 0:00:49]} 58. Qb5 {[%clk 0:00:04]}  Qd6+ {[%clk 0:00:48]} 59. Kf3 {[%clk 0:00:03]}  Qh2 {[%clk 0:00:47]} 60. Ng3 {[%clk 0:00:03]}  Qd2 {[%clk 0:00:45]} 61. Qc5 {[%clk 0:00:03]}  Re8 {[%clk 0:00:42]} 62. f6 {[%clk 0:00:02]}  gxf6 {[%clk 0:00:33]} 63. Qc6 {[%clk 0:00:03]}  Re3+ {[%clk 0:00:31]} 64. Kf4 {[%clk 0:00:02]}  Rc3+ {[%clk 0:00:31]} 0-1


[Site "https://www.chess.com"]

[Event "Titled Tuesday Blitz February 15 Late 2022"]
[White "Levine, David"]
[Black "Okike, David"]
[WhiteFideId "2011611"]
[BlackFideId "8500134"]
[WhiteElo "2158"]
[BlackElo "2232"]
[Result "0-1"]
[Round "05"]
[TimeControl "180+1"]
[Date "2022.02.16"]
[WhiteClock "0:00:59"]
[BlackClock "0:01:48"]

1. d4 {[%clk 0:02:56]}  Nf6 {[%clk 0:02:58]} 2. c4 {[%clk 0:02:55]}  e6 {[%clk 0:02:57]} 3. g3 {[%clk 0:02:55]}  Bb4+ {[%clk 0:02:56]} 4. Bd2 {[%clk 0:02:54]}  a5 {[%clk 0:02:56]} 5. Bg2 {[%clk 0:02:54]}  O-O {[%clk 0:02:55]} 6. Nc3 {[%clk 0:02:51]}  d5 {[%clk 0:02:54]} 7. Nf3 {[%clk 0:02:50]}  dxc4 {[%clk 0:02:52]} 8. O-O {[%clk 0:02:49]}  Bxc3 {[%clk 0:02:47]} 9. bxc3 {[%clk 0:02:47]}  b5 {[%clk 0:02:46]} 10. a4 {[%clk 0:02:45]}  Bd7 {[%clk 0:02:39]} 11. axb5 {[%clk 0:02:43]}  Bxb5 {[%clk 0:02:38]} 12. Ne5 {[%clk 0:02:43]}  c6 {[%clk 0:02:35]} 13. Bg5 {[%clk 0:02:36]}  h6 {[%clk 0:02:32]} 14. Bxf6 {[%clk 0:02:35]}  gxf6 {[%clk 0:02:32]} 15. Ng4 {[%clk 0:02:28]}  Kg7 {[%clk 0:02:31]} 16. Qd2 {[%clk 0:02:26]}  Rh8 {[%clk 0:02:31]} 17. e4 {[%clk 0:02:18]}  Nd7 {[%clk 0:02:30]} 18. f4 {[%clk 0:02:15]}  h5 {[%clk 0:02:18]} 19. Ne3 {[%clk 0:02:12]}  a4 {[%clk 0:02:15]} 20. d5 {[%clk 0:01:59]}  cxd5 {[%clk 0:02:13]} 21. exd5 {[%clk 0:01:58]}  Nc5 {[%clk 0:02:07]} 22. Qd4 {[%clk 0:01:53]}  Nb3 {[%clk 0:02:05]} 23. Qe4 {[%clk 0:01:41]}  Nxa1 {[%clk 0:02:04]} 24. dxe6 {[%clk 0:01:38]}  fxe6 {[%clk 0:02:03]} 25. Qxe6 {[%clk 0:01:37]}  Ra6 {[%clk 0:01:58]} 26. Nf5+ {[%clk 0:01:34]}  Kg6 {[%clk 0:01:57]} 27. Qe4 {[%clk 0:01:27]}  Kf7 {[%clk 0:01:56]} 28. Rxa1 {[%clk 0:01:22]}  Re6 {[%clk 0:01:55]} 29. Qc2 {[%clk 0:01:02]}  Qd3 {[%clk 0:01:49]} 30. Qb2 {[%clk 0:00:59]}  Qxf5 {[%clk 0:01:48]} 0-1


[Site "https://www.chess.com"]

[Event "Titled Tuesday Blitz February 15 Late 2022"]
[White "Li, Hui"]
[Black "Gracia Alvarez, Gerardo Antonio"]
[WhiteFideId "15400310"]
[BlackFideId "5109124"]
[WhiteElo "1954"]
[BlackElo "2139"]
[Result "0-1"]
[Round "05"]
[TimeControl "180+1"]
[Date "2022.02.16"]
[WhiteClock "0:00:06"]
[BlackClock "0:00:53"]

1. e4 {[%clk 0:03:00]}  c5 {[%clk 0:02:59]} 2. Nf3 {[%clk 0:03:00]}  Nc6 {[%clk 0:02:59]} 3. d4 {[%clk 0:03:00]}  cxd4 {[%clk 0:02:59]} 4. Nxd4 {[%clk 0:03:01]}  Nf6 {[%clk 0:03:00]} 5. Nc3 {[%clk 0:03:01]}  e5 {[%clk 0:03:00]} 6. Ndb5 {[%clk 0:03:01]}  h6 {[%clk 0:03:01]} 7. Nd6+ {[%clk 0:02:56]}  Bxd6 {[%clk 0:03:01]} 8. Qxd6 {[%clk 0:02:56]}  Qe7 {[%clk 0:03:02]} 9. Qxe7+ {[%clk 0:02:53]}  Kxe7 {[%clk 0:03:03]} 10. Be3 {[%clk 0:02:48]}  d6 {[%clk 0:03:03]} 11. Bc4 {[%clk 0:02:33]}  Be6 {[%clk 0:03:01]} 12. Bb3 {[%clk 0:02:26]}  Na5 {[%clk 0:02:56]} 13. f3 {[%clk 0:02:09]}  Rhc8 {[%clk 0:02:52]} 14. O-O {[%clk 0:02:03]}  Nc4 {[%clk 0:02:48]} 15. Bxc4 {[%clk 0:01:46]}  Bxc4 {[%clk 0:02:49]} 16. Rfd1 {[%clk 0:01:46]}  a6 {[%clk 0:02:47]} 17. Rd2 {[%clk 0:01:44]}  b5 {[%clk 0:02:45]} 18. Rad1 {[%clk 0:01:43]}  Rc6 {[%clk 0:02:44]} 19. a3 {[%clk 0:01:19]}  Rb8 {[%clk 0:02:35]} 20. Bf2 {[%clk 0:01:11]}  a5 {[%clk 0:02:31]} 21. Ne2 {[%clk 0:00:43]}  b4 {[%clk 0:02:20]} 22. axb4 {[%clk 0:00:42]}  axb4 {[%clk 0:02:21]} 23. Ng3 {[%clk 0:00:42]}  Be6 {[%clk 0:02:15]} 24. Nf1 {[%clk 0:00:40]}  d5 {[%clk 0:02:10]} 25. exd5 {[%clk 0:00:38]}  Nxd5 {[%clk 0:02:07]} 26. Rxd5 {[%clk 0:00:35]}  Bxd5 {[%clk 0:02:07]} 27. Rxd5 {[%clk 0:00:35]}  Rxc2 {[%clk 0:02:06]} 28. Rd2 {[%clk 0:00:18]}  Rbc8 {[%clk 0:01:53]} 29. g4 {[%clk 0:00:13]}  Ke6 {[%clk 0:01:43]} 30. Be3 {[%clk 0:00:11]}  Rxd2 {[%clk 0:01:32]} 31. Bxd2 {[%clk 0:00:11]}  b3 {[%clk 0:01:30]} 32. Ne3 {[%clk 0:00:09]}  g6 {[%clk 0:01:29]} 33. Kf2 {[%clk 0:00:09]}  f5 {[%clk 0:01:30]} 34. gxf5+ {[%clk 0:00:09]}  gxf5 {[%clk 0:01:31]} 35. Ke2 {[%clk 0:00:10]}  f4 {[%clk 0:01:29]} 36. Ng4 {[%clk 0:00:09]}  Rc2 {[%clk 0:01:29]} 37. Kd3 {[%clk 0:00:08]}  Rxb2 {[%clk 0:01:18]} 38. Nf2 {[%clk 0:00:08]}  Rc2 {[%clk 0:01:11]} 39. Ne4 {[%clk 0:00:08]}  Rc6 {[%clk 0:01:09]} 40. Bc3 {[%clk 0:00:07]}  Kf5 {[%clk 0:01:02]} 41. Nd2 {[%clk 0:00:06]}  Rd6+ {[%clk 0:00:56]} 42. Kc4 {[%clk 0:00:06]}  Rxd2 {[%clk 0:00:53]} 0-1


[Site "https://www.chess.com"]

[Event "Titled Tuesday Blitz February 15 Late 2022"]
[White "Loay, Sameer"]
[Black "Ramirez, Alejandro"]
[WhiteFideId "8104239"]
[BlackFideId "6500617"]
[WhiteElo "2040"]
[BlackElo "2694"]
[Result "0-1"]
[Round "05"]
[TimeControl "180+1"]
[Date "2022.02.15"]
[WhiteClock "0:00:04"]
[BlackClock "0:00:06"]

1. Nf3 {[%clk 0:03:00]}  d5 {[%clk 0:02:52]} 2. g3 {[%clk 0:03:01]}  Nf6 {[%clk 0:02:52]} 3. Bg2 {[%clk 0:03:01]}  c6 {[%clk 0:02:53]} 4. O-O {[%clk 0:03:02]}  Bf5 {[%clk 0:02:54]} 5. d3 {[%clk 0:03:02]}  e6 {[%clk 0:02:54]} 6. Nbd2 {[%clk 0:03:03]}  h6 {[%clk 0:02:55]} 7. b3 {[%clk 0:03:03]}  Nbd7 {[%clk 0:02:54]} 8. Bb2 {[%clk 0:03:04]}  a5 {[%clk 0:02:55]} 9. a4 {[%clk 0:03:02]}  Bc5 {[%clk 0:02:54]} 10. e4 {[%clk 0:03:02]}  Bg6 {[%clk 0:02:52]} 11. Qe2 {[%clk 0:03:02]}  O-O {[%clk 0:02:52]} 12. Ne5 {[%clk 0:03:02]}  Bh7 {[%clk 0:02:37]} 13. Kh1 {[%clk 0:03:00]}  dxe4 {[%clk 0:02:30]} 14. dxe4 {[%clk 0:03:00]}  Nxe5 {[%clk 0:02:10]} 15. Bxe5 {[%clk 0:03:01]}  Bd4 {[%clk 0:02:11]} 16. Bxd4 {[%clk 0:02:55]}  Qxd4 {[%clk 0:02:12]} 17. Rad1 {[%clk 0:02:39]}  Rfd8 {[%clk 0:01:55]} 18. Nc4 {[%clk 0:02:04]}  Qc3 {[%clk 0:01:54]} 19. Nb6 {[%clk 0:01:57]}  Rab8 {[%clk 0:01:45]} 20. h3 {[%clk 0:01:55]}  Qb4 {[%clk 0:01:14]} 21. Nc4 {[%clk 0:01:41]}  b5 {[%clk 0:01:12]} 22. Ne5 {[%clk 0:01:40]}  Qc5 {[%clk 0:01:11]} 23. Nd3 {[%clk 0:01:38]}  Qc3 {[%clk 0:01:10]} 24. axb5 {[%clk 0:01:25]}  cxb5 {[%clk 0:01:11]} 25. Nf4 {[%clk 0:01:19]}  Rdc8 {[%clk 0:00:52]} 26. e5 {[%clk 0:01:02]}  Ne8 {[%clk 0:00:52]} 27. Rd7 {[%clk 0:01:02]}  Qxc2 {[%clk 0:00:38]} 28. Qh5 {[%clk 0:01:02]}  Qf5 {[%clk 0:00:39]} 29. Qe2 {[%clk 0:00:57]}  Rc2 {[%clk 0:00:39]} 30. Qd1 {[%clk 0:00:53]}  Qxe5 {[%clk 0:00:36]} 31. Re1 {[%clk 0:00:46]}  Qc5 {[%clk 0:00:26]} 32. Rd8 {[%clk 0:00:42]}  Qc7 {[%clk 0:00:20]} 33. Rxb8 {[%clk 0:00:42]}  Qxb8 {[%clk 0:00:21]} 34. Qg4 {[%clk 0:00:27]}  Rxf2 {[%clk 0:00:18]} 35. Nxe6 {[%clk 0:00:25]}  Bf5 {[%clk 0:00:15]} 36. Qd4 {[%clk 0:00:14]}  Qxg3 {[%clk 0:00:15]} 37. Nf4 {[%clk 0:00:11]}  Rxf4 {[%clk 0:00:12]} 38. Rxe8+ {[%clk 0:00:12]}  Kh7 {[%clk 0:00:13]} 39. Qg1 {[%clk 0:00:12]}  Rf2 {[%clk 0:00:11]} 40. Re1 {[%clk 0:00:08]}  g6 {[%clk 0:00:11]} 41. Rf1 {[%clk 0:00:08]}  Rxf1 {[%clk 0:00:08]} 42. Qxf1 {[%clk 0:00:09]}  Qe5 {[%clk 0:00:07]} 43. Qd1 {[%clk 0:00:06]}  b4 {[%clk 0:00:05]} 44. Bd5 {[%clk 0:00:03]}  Be6 {[%clk 0:00:05]} 45. Qd4 {[%clk 0:00:04]}  Qxd4 {[%clk 0:00:06]} 0-1


[Site "https://www.chess.com"]

[Event "Titled Tuesday Blitz February 15 Late 2022"]
[White "Maghsoodloo, Parham"]
[Black "Goltsev, Dmitry"]
[WhiteFideId "12539929"]
[BlackFideId "24176710"]
[WhiteElo "2630"]
[BlackElo "2273"]
[Result "1-0"]
[Round "05"]
[TimeControl "180+1"]
[Date "2022.02.16"]
[WhiteClock "0:02:04"]
[BlackClock "0:00:27"]

1. d4 {[%clk 0:03:00]}  Nf6 {[%clk 0:02:45]} 2. c4 {[%clk 0:02:57]}  e6 {[%clk 0:02:45]} 3. Nc3 {[%clk 0:02:54]}  Bb4 {[%clk 0:02:44]} 4. e3 {[%clk 0:02:54]}  O-O {[%clk 0:02:42]} 5. Bd3 {[%clk 0:02:55]}  b6 {[%clk 0:02:39]} 6. Nf3 {[%clk 0:02:54]}  Bb7 {[%clk 0:02:36]} 7. O-O {[%clk 0:02:55]}  Bxc3 {[%clk 0:02:34]} 8. bxc3 {[%clk 0:02:54]}  Ne4 {[%clk 0:02:34]} 9. Qc2 {[%clk 0:02:53]}  f5 {[%clk 0:02:33]} 10. a4 {[%clk 0:02:53]}  a5 {[%clk 0:02:29]} 11. Ne1 {[%clk 0:02:50]}  Nc6 {[%clk 0:02:04]} 12. f3 {[%clk 0:02:47]}  Nf6 {[%clk 0:02:02]} 13. e4 {[%clk 0:02:37]}  fxe4 {[%clk 0:02:00]} 14. fxe4 {[%clk 0:02:35]}  e5 {[%clk 0:02:00]} 15. Nf3 {[%clk 0:02:35]}  d6 {[%clk 0:01:56]} 16. c5 {[%clk 0:02:32]}  exd4 {[%clk 0:01:48]} 17. cxd6 {[%clk 0:02:18]}  Qxd6 {[%clk 0:01:41]} 18. Ba3 {[%clk 0:02:17]}  Qd7 {[%clk 0:01:22]} 19. e5 {[%clk 0:02:16]}  Ng4 {[%clk 0:01:13]} 20. Bxh7+ {[%clk 0:02:13]}  Kh8 {[%clk 0:01:12]} 21. Bxf8 {[%clk 0:02:09]}  Rxf8 {[%clk 0:00:43]} 22. Nxd4 {[%clk 0:02:06]}  Nxd4 {[%clk 0:00:27]} 23. Rxf8# {[%clk 0:02:04]} 1-0


[Site "https://www.chess.com"]